bitfinex/quotes_BTCUSD_20220211
["timestamp","ask_amount","ask_price","bid_price","bid_amount"]
[1644584901263,0.323735,43636.0,43634.0,0.00073658]
[1644584901465,0.38062826,43635.0,43634.0,0.00073658]
[1644584901723,0.70436326,43635.0,43634.0,0.00073658]
[1644584901919,0.70436326,43635.0,43630.0,0.19487133]
[1644584902217,0.38062826,43635.0,43632.0,0.0007366]
[1644584902417,0.24319038,43634.0,43632.0,0.0007366]
[1644584902619,0.323735,43633.0,43632.0,0.0007366]
[1644584903217,0.32948818,43632.0,43630.0,0.19487133]
[1644584903418,0.32948818,43632.0,43630.0,0.00073661]
[1644584904420,0.38062826,43635.0,43629.0,0.19487133]
[1644584904620,0.00439803,43630.0,43629.0,0.19559983]
[1644584905018,0.00439803,43630.0,43629.0,0.25291683]
[1644584905458,0.00439803,43630.0,43629.0,0.54128498]
[1644584905658,0.00439803,43630.0,43629.0,0.25218833]
[1644584906662,0.00439803,43630.0,43629.0,1.2674027]
[1644584907062,0.14459195,43644.0,43629.0,1.07253137]
[1644584907264,0.14459195,43644.0,43632.0,0.057313]
[1644584907464,0.323735,43643.0,43631.0,0.057314]
[1644584907664,0.19578313,43643.0,43631.0,0.057314]
[1644584907867,0.29578313,43643.0,43640.0,0.33103444]
[1644584908063,0.3240537,43641.0,43635.0,0.00069748]
[1644584908264,0.3740537,43641.0,43635.0,0.00069748]
[1644584909064,0.3740537,43641.0,43631.0,0.057314]
[1644584909311,0.323735,43640.0,43636.0,0.30893631]
[1644584909712,0.323735,43640.0,43636.0,0.00069746]
[1644584910414,0.43136975,43641.0,43631.0,0.057314]
[1644584910712,0.48868675,43641.0,43636.0,0.00069746]
[1644584911109,0.3240537,43641.0,43636.0,0.00069746]
[1644584911512,0.373735,43640.0,43635.0,0.29136271]
[1644584911712,0.05,43640.0,43636.0,0.00069975]
[1644584912311,0.43868871,43641.0,43636.0,0.00069975]
[1644584912312,0.3240537,43641.0,43636.0,0.00069975]
[1644584912811,0.3240537,43641.0,43635.0,0.29136271]
[1644584913073,0.3240537,43641.0,43636.0,0.00069975]
[1644584913868,0.3240537,43641.0,43635.0,0.29136271]
[1644584914070,0.3240537,43641.0,43636.0,0.00069975]
[1644584914369,0.3240537,43641.0,43636.0,0.05800875]
[1644584915171,0.236719,43646.0,43636.0,0.057309]
[1644584915372,0.323735,43645.0,43636.0,0.0580086]
[1644584915574,0.373735,43645.0,43636.0,0.0580086]
[1644584915772,0.373735,43643.0,43636.0,0.0580086]
[1644584915974,0.323735,43642.0,43636.0,0.0580086]
[1644584916172,0.15,43645.0,43636.0,0.0580086]
[1644584916173,0.323735,43643.0,43636.0,0.0580086]
[1644584916376,0.323735,43643.0,43637.0,0.34889951]
[1644584916576,0.6712,43650.0,43638.0,0.103106]
[1644584916823,0.3625,43655.0,43638.0,0.103106]
[1644584916824,0.19603427,43654.0,43638.0,0.103106]
[1644584917020,0.3625,43655.0,43638.0,0.103106]
[1644584917021,0.3625,43655.0,43639.0,0.19453254]
[1644584917321,0.323735,43654.0,43648.0,0.057292]
[1644584917519,0.323735,43654.0,43649.0,0.0458]
[1644584918319,0.38103094,43654.0,43649.0,0.0458]
[1644584918518,0.323735,43653.0,43649.0,0.0458]
[1644584918921,0.373735,43653.0,43649.0,0.04649955]
[1644584919118,0.323735,43651.0,43649.0,0.04649955]
[1644584919918,0.323735,43651.0,43649.0,0.0458]
[1644584920562,0.38900338,43655.0,43649.0,0.0458]
[1644584920771,0.323735,43654.0,43649.0,0.0458]
[1644584920970,0.323735,43656.0,43650.0,0.114574]
[1644584921164,0.323735,43656.0,43651.0,0.0458]
[1644584921966,0.323735,43654.0,43651.0,0.0458]
[1644584922163,0.323735,43654.0,43651.0,0.04259001]
[1644584923368,0.323735,43654.0,43651.0,0.09987901]
[1644584923568,0.26232931,43659.0,43651.0,0.09987901]
[1644584923765,0.00069973,43657.0,43651.0,0.09987901]
[1644584924415,0.00069973,43657.0,43651.0,0.15716501]
[1644584924714,0.71098857,43664.0,43652.0,0.057281]
[1644584924715,0.5149543,43664.0,43652.0,0.057281]
[1644584924914,0.5149543,43664.0,43653.0,0.31129608]
[1644584924915,0.323735,43663.0,43653.0,0.31129608]
[1644584925113,0.5149543,43664.0,43654.0,0.0458]
[1644584925114,0.00069974,43657.0,43654.0,0.0458]
[1644584925314,0.00069974,43657.0,43655.0,0.0458]
[1644584925714,0.32443474,43657.0,43656.0,0.057282]
[1644584925916,0.323735,43657.0,43656.0,0.103082]
[1644584926314,0.323735,43657.0,43656.0,0.0458]
[1644584926315,0.72861968,43657.0,43656.0,0.0458]
[1644584927817,0.373735,43657.0,43656.0,0.0458]
[1644584929661,0.323735,43657.0,43656.0,0.0458]
[1644584930662,0.323735,43657.0,43656.0,0.103082]
[1644584930864,0.323735,43657.0,43656.0,0.0458]
[1644584933216,0.323735,43657.0,43647.0,0.4696502]
[1644584933416,0.2702789,43657.0,43650.0,0.00069987]
[1644584933617,0.323735,43656.0,43650.0,0.00069987]
[1644584934015,0.2702789,43657.0,43651.0,0.057288]
[1644584934016,0.323735,43657.0,43651.0,0.057288]
[1644584934215,0.323735,43658.0,43652.0,0.27676991]
[1644584934415,0.2961432,43659.0,43649.0,0.323735]
[1644584934416,0.29544347,43659.0,43649.0,0.323735]
[1644584934615,0.00069973,43657.0,43651.0,0.323735]
[1644584934815,0.00069973,43657.0,43652.0,0.28853672]
[1644584935014,0.30033078,43656.0,43651.0,0.057288]
[1644584935215,0.323735,43655.0,43652.0,0.28391341]
[1644584935459,0.323735,43655.0,43651.0,0.057288]
[1644584936261,0.323735,43655.0,43652.0,0.26838235]
[1644584936462,0.3039729,43656.0,43652.0,0.26838235]
[1644584937162,0.00364212,43656.0,43653.0,0.057286]
[1644584937961,0.00364212,43656.0,43654.0,0.0458]
[1644584939225,0.323735,43655.0,43654.0,0.0458]
[1644584941812,0.373735,43655.0,43654.0,0.0458]
[1644584945561,0.05,43655.0,43654.0,0.369535]
[1644584945761,0.00364212,43656.0,43654.0,0.65274898]
[1644584945961,0.00364212,43656.0,43655.0,0.33108112]
[1644584946161,0.00364212,43656.0,43655.0,0.65481612]
[1644584946563,0.00364212,43656.0,43655.0,0.95168435]
[1644584947614,0.36228651,43662.0,43655.0,0.95168435]
[1644584947814,0.00070005,43658.0,43656.0,0.323735]
[1644584948013,0.00070005,43658.0,43657.0,0.05728]
[1644584948212,0.00070005,43658.0,43657.0,0.381015]
[1644584948413,0.00070005,43658.0,43657.0,0.05728]
[1644584948815,0.323735,43660.0,43657.0,0.05728]
[1644584949013,0.37443504,43660.0,43657.0,0.05728]
[1644584949213,0.323735,43658.0,43657.0,0.05728]
[1644584949618,0.05,43659.0,43657.0,0.65899495]
[1644584949816,0.05,43659.0,43658.0,0.28166666]
[1644584950016,0.323735,43665.0,43660.0,0.057278]
[1644584950216,0.323735,43664.0,43660.0,0.103078]
[1644584950663,0.31112798,43661.0,43660.0,0.103078]
[1644584950863,0.373735,43661.0,43660.0,0.103078]
[1644584951263,0.05,43661.0,43660.0,0.42492931]
[1644584951664,0.00069999,43663.0,43660.0,0.42492931]
[1644584951864,0.24974081,43663.0,43660.0,0.42492931]
[1644584952068,0.373735,43662.0,43660.0,0.42492931]
[1644584952469,0.05,43662.0,43660.0,0.42492931]
[1644584952663,0.05,43662.0,43660.0,0.36765131]
[1644584952865,0.323735,43662.0,43660.0,0.36765131]
[1644584953264,0.323735,43661.0,43660.0,0.36765131]
[1644584953666,0.05,43662.0,43660.0,0.36765131]
[1644584953866,0.05,43662.0,43661.0,0.28151063]
[1644584954231,0.05797899,43663.0,43661.0,0.63774218]
[1644584954232,0.00069999,43663.0,43661.0,0.63774218]
[1644584954413,0.00069999,43663.0,43662.0,0.59129388]
[1644584954617,0.00069999,43663.0,43662.0,0.0458]
[1644584954814,0.66227165,43666.0,43662.0,0.0458]
[1644584955015,0.00067651,43665.0,43662.0,0.10307]
[1644584955215,0.323735,43664.0,43662.0,0.10307]
[1644584956716,0.00046519,43665.0,43662.0,0.10307]
[1644584956916,0.05,43664.0,43662.0,0.10307]
[1644584957517,0.05046519,43666.0,43662.0,0.10307]
[1644584957716,0.323735,43665.0,43662.0,0.10307]
[1644584958164,0.323735,43664.0,43662.0,0.10307]
[1644584958365,0.323735,43663.0,43662.0,0.10307]
[1644584958963,0.00073723,43666.0,43662.0,0.10307]
[1644584958964,0.323735,43665.0,43662.0,0.10307]
[1644584959165,0.00073723,43666.0,43662.0,0.10307]
[1644584959364,0.323735,43665.0,43662.0,0.10307]
[1644584959967,0.323735,43665.0,43662.0,0.0458]
[1644584960167,0.00361217,43662.0,43656.0,0.0458]
[1644584960368,0.00361217,43662.0,43654.0,0.1138]
[1644584960369,0.26494477,43657.0,43654.0,0.1138]
[1644584960567,0.05,43657.0,43653.0,0.19453254]
[1644584960767,0.05,43657.0,43654.0,0.323735]
[1644584960967,0.45157669,43661.0,43654.0,0.323735]
[1644584961167,0.00073727,43658.0,43653.0,0.19453254]
[1644584961366,0.00073727,43658.0,43654.0,0.057285]
[1644584961571,0.00073727,43658.0,43654.0,0.25181754]
[1644584962115,0.39621824,43660.0,43654.0,0.25181754]
[1644584962316,0.00073727,43658.0,43654.0,0.25181754]
[1644584962513,0.00073727,43658.0,43654.0,0.25023259]
[1644584962714,0.00073727,43658.0,43655.0,0.51826754]
[1644584964822,0.00073728,43657.0,43652.0,0.19453254]
[1644584965018,0.323735,43655.0,43653.0,0.25181954]
[1644584965318,0.05,43656.0,43654.0,0.19453254]
[1644584965568,0.323735,43656.0,43654.0,0.19453254]
[1644584965769,0.323735,43655.0,43654.0,0.19453254]
[1644584966168,0.05,43655.0,43654.0,0.19453254]
[1644584966367,0.00011983,43657.0,43654.0,0.25181554]
[1644584966570,0.00011983,43657.0,43653.0,0.19453254]
[1644584966571,0.323735,43656.0,43653.0,0.19453254]
[1644584966768,0.323735,43655.0,43652.0,0.19453254]
[1644584967172,0.178072,43659.0,43653.0,0.19453254]
[1644584967374,0.323751,43661.0,43653.0,0.19453254]
[1644584967571,0.178072,43657.0,43653.0,0.19453254]
[1644584967771,0.178072,43657.0,43654.0,0.19453254]
[1644584967970,0.228072,43657.0,43654.0,0.19453254]
[1644584968170,0.323751,43655.0,43654.0,0.19453254]
[1644584968370,0.05,43657.0,43654.0,0.19453254]
[1644584968371,0.05728733,43657.0,43654.0,0.19453254]
[1644584968574,0.323751,43660.0,43655.0,0.19571636]
[1644584968775,0.323751,43660.0,43656.0,0.19571636]
[1644584969072,0.323751,43660.0,43657.0,0.0458]
[1644584969327,0.473751,43660.0,43657.0,0.0458]
[1644584969528,0.323751,43659.0,43657.0,0.0458]
[1644584969828,0.373751,43659.0,43657.0,0.0458]
[1644584970028,0.373751,43659.0,43657.0,0.0408]
[1644584970029,0.178072,43658.0,43657.0,0.0408]
[1644584973268,0.11458278,43657.0,43652.0,0.00073739]
[1644584973466,0.32363835,43654.0,43652.0,0.00073739]
[1644584973669,0.178072,43653.0,43652.0,0.00073739]
[1644584973966,0.228072,43653.0,43650.0,0.24385934]
[1644584974166,0.05,43653.0,43650.0,0.24459671]
[1644584974366,0.05729,43653.0,43650.0,0.24459671]
[1644584974567,0.05729,43652.0,43650.0,0.24459671]
[1644584974767,0.10729,43652.0,43650.0,0.24459671]
[1644584974967,0.323751,43651.0,43650.0,0.00073737]
[1644584975172,0.323751,43651.0,43649.0,0.24385934]
[1644584975367,0.323751,43650.0,43649.0,0.00073737]
[1644584975570,0.057292,43651.0,43649.0,0.00073737]
[1644584975771,0.27898395,43650.0,43649.0,0.00073737]
[1644584975972,0.66366929,43650.0,43649.0,0.00073737]
[1644584976369,0.66366929,43650.0,43642.0,0.07]
[1644584976370,0.05,43649.0,43642.0,0.07]
[1644584976571,0.057311,43647.0,43642.0,0.07]
[1644584976826,0.057307,43645.0,43642.0,0.07]
[1644584977025,0.178072,43644.0,43642.0,0.07]
[1644584977227,0.278072,43644.0,43642.0,0.07]
[1644584977427,0.323751,43643.0,43642.0,0.07]
[1644584977728,0.05,43644.0,43642.0,0.07]
[1644584977926,0.323751,43643.0,43642.0,0.07]
[1644584978325,0.05,43643.0,43642.0,0.07]
[1644584978928,0.373751,43643.0,43642.0,0.07]
[1644584979126,0.423751,43643.0,43642.0,0.07]
[1644584979326,0.76538342,43643.0,43642.0,0.07]
[1644584980468,0.1,43643.0,43642.0,0.07]
[1644584980767,0.05,43643.0,43642.0,0.07]
[1644584980966,0.373751,43643.0,43642.0,0.07]
[1644584981167,0.423751,43643.0,43642.0,0.07]
[1644584981367,0.72244589,43643.0,43642.0,0.07]
[1644584982569,0.423751,43643.0,43642.0,0.07]
[1644584983267,0.373751,43643.0,43642.0,0.07]
[1644584983469,0.1146,43645.0,43642.0,0.07]
[1644584983470,0.0573,43645.0,43642.0,0.07]
[1644584983670,0.05,43644.0,43642.0,0.07]
[1644584983868,0.0573,43645.0,43642.0,0.07025077]
[1644584984067,0.0573,43645.0,43642.0,0.07]
[1644584985115,0.323751,43644.0,43642.0,0.07025077]
[1644584985319,0.0573,43645.0,43642.0,0.07]
[1644584985516,0.221906,43646.0,43644.0,0.26158672]
[1644584985717,0.323751,43645.0,43644.0,0.26158672]
[1644584986917,0.05,43646.0,43644.0,0.26158672]
[1644584987117,0.114591,43650.0,43645.0,0.66459775]
[1644584987118,0.057291,43650.0,43645.0,0.66459775]
[1644584987321,0.114582,43656.0,43645.0,0.66459775]
[1644584987322,0.05,43649.0,43645.0,0.34084675]
[1644584987519,0.15,43660.0,43647.0,0.057284]
[1644584987520,0.05,43654.0,43647.0,0.057284]
[1644584987718,0.05,43656.0,43648.0,0.37404737]
[1644584987969,0.323751,43655.0,43648.0,0.37404737]
[1644584988367,0.057284,43654.0,43648.0,0.37404737]
[1644584988566,0.178072,43653.0,43651.0,0.25771349]
[1644584988767,0.178072,43653.0,43652.0,0.0458]
[1644584989068,0.228072,43653.0,43652.0,0.0458]
[1644584990068,0.228072,43653.0,43652.0,0.31136882]
[1644584990271,0.228072,43653.0,43652.0,0.0458]
[1644584991269,0.2925989,43653.0,43652.0,0.0458]
[1644584991471,0.3425989,43653.0,43652.0,0.0458]
[1644584991728,0.3998989,43653.0,43650.0,0.00073737]
[1644584991915,0.44626229,43652.0,43650.0,0.00073737]
[1644584992115,0.44626229,43652.0,43642.0,0.07025077]
[1644584992315,0.278072,43652.0,43649.0,0.00073737]
[1644584992515,0.30112171,43650.0,43649.0,0.00073737]
[1644584992717,0.62487271,43650.0,43649.0,0.00073737]
[1644584993317,0.62487271,43650.0,43642.0,0.07025266]
[1644584993518,0.57118493,43649.0,43647.0,0.00073738]
[1644584993718,0.228072,43649.0,43647.0,0.00073738]
[1644584994119,0.22797327,43649.0,43647.0,0.00073738]
[1644584994321,0.057299,43648.0,43647.0,0.00073738]
[1644584994523,0.057299,43648.0,43642.0,0.07025266]
[1644584994821,0.38105,43647.0,43646.0,0.00073739]
[1644584995670,0.057299,43647.0,43642.0,0.07025266]
[1644584995868,0.323751,43646.0,43644.0,0.0007374]
[1644584996469,0.24375414,43645.0,43644.0,0.0007374]
[1644584996870,0.323751,43643.0,43642.0,0.07]
[1644584997073,0.323751,43643.0,43642.0,0.07073741]
[1644584997271,0.05,43643.0,43638.0,0.00025268]
[1644584997570,0.323751,43641.0,43638.0,0.00025268]
[1644584997769,0.323751,43641.0,43632.0,0.2912612]
[1644584997770,0.05,43641.0,43633.0,0.057307]
[1644584997968,0.05,43641.0,43633.0,0.00025268]
[1644584997969,0.40087412,43639.0,43633.0,0.00025268]
[1644584998173,0.40087412,43639.0,43634.0,0.323751]
[1644584998369,0.40087412,43639.0,43633.0,0.65142805]
[1644584998370,0.45087412,43639.0,43633.0,0.65142805]
[1644584998572,0.45087412,43639.0,43633.0,0.65117537]
[1644584998769,0.40087412,43639.0,43633.0,0.65142805]
[1644584999225,0.40087412,43639.0,43633.0,0.70873505]
[1644584999616,0.06836928,43638.0,43633.0,0.70873505]
[1644584999816,0.12567828,43638.0,43633.0,0.65142805]
[1644585000216,0.057309,43638.0,43633.0,0.65142805]
[1644585000421,0.057309,43638.0,43633.0,0.32767705]
[1644585000618,0.057309,43638.0,43633.0,0.30816183]
[1644585000823,0.17195472,43637.0,43633.0,0.30841451]
[1644585001019,0.16463672,43637.0,43633.0,0.00099014]
[1644585001223,0.05,43634.0,43630.0,0.00025268]
[1644585001417,0.16466,43634.0,43630.0,0.00025268]
[1644585001621,0.11466,43634.0,43630.0,0.00025268]
[1644585001919,0.37851653,43633.0,43630.0,0.00025268]
[1644585002118,0.37851653,43633.0,43629.0,100.0]
[1644585002320,0.28677,43643.0,43630.0,1.22178311]
[1644585002523,0.28677,43643.0,43630.0,1.52203579]
[1644585002524,0.1148,43643.0,43630.0,1.52203579]
[1644585002721,0.1148,43643.0,43631.0,0.00025268]
[1644585002970,0.057311,43641.0,43631.0,0.00025268]
[1644585003169,0.057317,43640.0,43631.0,0.00025268]
[1644585003372,0.34046836,43637.0,43631.0,0.00025268]
[1644585003969,0.057319,43636.0,43631.0,0.00025268]
[1644585004170,0.44778736,43637.0,43631.0,0.00025268]
[1644585004969,0.50510636,43637.0,43631.0,0.00025268]
[1644585005573,0.50510636,43637.0,43631.0,0.00098858]
[1644585006170,0.44778736,43637.0,43631.0,0.00098858]
[1644585006369,0.44778736,43637.0,43631.0,0.00025268]
[1644585006817,0.44778736,43637.0,43631.0,0.00098858]
[1644585007115,0.107319,43637.0,43631.0,0.00098858]
[1644585007719,0.107319,43637.0,43631.0,0.00025268]
[1644585007917,0.107319,43637.0,43631.0,0.00098858]
[1644585008523,0.057319,43637.0,43631.0,0.00098858]
[1644585008920,0.057314,43635.0,43631.0,0.00025268]
[1644585009119,0.04781251,43635.0,43631.0,0.00098858]
[1644585010021,0.04781251,43635.0,43631.0,0.00025268]
[1644585010221,0.04781251,43635.0,43631.0,0.00098857]
[1644585011070,0.04781251,43635.0,43632.0,0.323751]
[1644585011267,0.04781251,43635.0,43633.0,0.27610619]
[1644585011467,0.05,43636.0,43633.0,0.27610619]
[1644585011670,0.05,43638.0,43633.0,0.27610619]
[1644585011866,0.05,43638.0,43632.0,0.00025268]
[1644585012068,0.05,43638.0,43631.0,0.00073589]
[1644585012069,0.05,43638.0,43631.0,0.00098857]
[1644585012268,0.29961273,43639.0,43632.0,0.95]
[1644585012470,0.057313,43637.0,43632.0,0.00025268]
[1644585012769,0.34364933,43641.0,43632.0,0.95]
[1644585013069,0.114637,43643.0,43632.0,0.95025268]
[1644585013269,0.057318,43639.0,43632.0,0.95025268]
[1644585013470,0.057318,43639.0,43632.0,0.00025268]
[1644585013674,0.057318,43639.0,43631.0,0.00025268]
[1644585013870,0.057318,43639.0,43630.0,0.27203579]
[1644585014070,0.39180387,43638.0,43630.0,0.27203579]
[1644585014319,0.057313,43637.0,43630.0,0.27203579]
[1644585014719,0.114631,43638.0,43630.0,0.27203579]
[1644585014917,0.171949,43638.0,43630.0,0.27203579]
[1644585015217,0.171952,43638.0,43630.0,0.27203579]
[1644585015418,0.495703,43638.0,43637.0,0.29978809]
[1644585016419,0.171952,43638.0,43637.0,0.29978809]
[1644585016818,0.495703,43638.0,43637.0,0.29978809]
[1644585017219,0.114631,43638.0,43637.0,0.29978809]
[1644585017619,0.114631,43638.0,43636.0,0.00025268]
[1644585017820,0.17195,43638.0,43635.0,0.30652229]
[1644585018268,0.17195,43638.0,43635.0,0.00073587]
[1644585018469,0.17195,43638.0,43630.0,0.00025268]
[1644585018672,0.17195,43638.0,43634.0,0.00073587]
[1644585019270,0.229269,43638.0,43634.0,0.00073587]
[1644585019671,0.229269,43638.0,43633.0,0.00025268]
[1644585019871,0.107318,43637.0,43634.0,0.00073588]
[1644585020072,0.057321,43636.0,43634.0,0.00073588]
[1644585020973,0.114641,43635.0,43633.0,0.00025268]
[1644585021174,0.114641,43635.0,43633.0,0.00073588]
[1644585022016,0.114641,43635.0,43632.0,0.31274038]
[1644585022219,0.114641,43635.0,43632.0,0.31347627]
[1644585023317,0.114641,43635.0,43632.0,0.31274038]
[1644585024717,0.171964,43635.0,43632.0,0.31274038]
[1644585025319,0.171964,43635.0,43633.0,0.03033992]
[1644585025767,0.114641,43635.0,43633.0,0.03033992]
[1644585030117,0.114641,43635.0,43632.0,0.31347407]
[1644585030317,0.114641,43635.0,43633.0,0.323751]
[1644585031319,0.114641,43635.0,43632.0,0.31274038]
[1644585032519,0.171962,43635.0,43632.0,0.31274038]
[1644585033674,0.229284,43635.0,43632.0,0.31274038]
[1644585034073,0.229284,43635.0,43632.0,0.00025268]
[1644585034275,0.229284,43635.0,43631.0,0.28773693]
[1644585034473,0.057322,43634.0,43631.0,0.28773693]
[1644585034872,0.057322,43634.0,43632.0,0.27153465]
[1644585035073,0.057322,43634.0,43633.0,0.323751]
[1644585035273,0.171962,43635.0,43633.0,0.33356958]
[1644585035473,0.114641,43635.0,43634.0,0.323751]
[1644585035673,0.114641,43635.0,43633.0,0.01007126]
[1644585035875,0.114641,43635.0,43634.0,0.5893525]
[1644585036920,0.114641,43635.0,43634.0,0.2656015]
[1644585037518,0.11456975,43635.0,43633.0,0.01007126]
[1644585037718,0.11456975,43635.0,43633.0,0.27682672]
[1644585037919,0.11456975,43635.0,43634.0,0.323751]
[1644585039818,0.11456975,43635.0,43634.0,0.59712233]
[1644585040018,0.11456975,43635.0,43634.0,0.323751]
[1644585041972,0.114638,43637.0,43634.0,0.5966671]
[1644585041973,0.05732,43637.0,43634.0,0.5966671]
[1644585042168,0.00073386,43642.0,43634.0,0.59691978]
[1644585042369,0.00073386,43642.0,43636.0,0.323751]
[1644585042570,0.05,43644.0,43637.0,0.0458]
[1644585042768,0.0007339,43642.0,43637.0,0.0458]
[1644585042971,0.0007339,43642.0,43639.0,0.30162905]
[1644585043172,0.0007339,43642.0,43639.0,0.35893605]
[1644585043872,0.178072,43642.0,43639.0,0.0458]
[1644585044074,0.323751,43640.0,43639.0,0.0458]
[1644585044917,0.057309,43642.0,43639.0,0.0458]
[1644585045117,0.323751,43641.0,43639.0,0.0458]
[1644585045317,0.05779504,43642.0,43639.0,0.0458]
[1644585046019,0.057309,43642.0,43639.0,0.0458]
[1644585047220,0.323751,43641.0,43639.0,0.0458]
[1644585047623,0.323751,43640.0,43639.0,0.0458]
[1644585047824,0.08588136,43635.0,43634.0,0.04605268]
[1644585048077,0.05069579,43643.0,43634.0,0.27858036]
[1644585048078,0.3207787,43642.0,43634.0,0.27858036]
[1644585048779,0.057319,43637.0,43634.0,0.27858036]
[1644585048977,0.114636,43637.0,43634.0,0.27858036]
[1644585050579,0.114636,43637.0,43635.0,0.26871818]
[1644585050978,0.057319,43637.0,43635.0,0.26871818]
[1644585052822,0.057319,43637.0,43635.0,0.59246918]
[1644585053021,0.114637,43638.0,43636.0,0.26902173]
[1644585053523,0.114637,43638.0,43637.0,0.34403464]
[1644585053724,0.057315,43639.0,43637.0,0.34403464]
[1644585054423,0.057306,43641.0,43638.0,0.5955818]
[1644585054623,0.31195089,43649.0,43639.0,0.29396556]
[1644585054624,0.1168,43649.0,43639.0,0.29396556]
[1644585054829,0.1168,43649.0,43638.0,0.6413818]
[1644585054830,0.05293622,43651.0,43641.0,0.323751]
[1644585055027,0.00293622,43651.0,43648.0,0.5731]
[1644585055225,0.00293622,43651.0,43649.0,0.369551]
[1644585055469,0.00293622,43651.0,43650.0,0.67724827]
[1644585055673,0.057284,43658.0,43650.0,1.04071615]
[1644585055674,0.00026545,43657.0,43650.0,1.04071615]
[1644585055870,0.057284,43658.0,43651.0,0.323751]
[1644585055871,0.00026545,43658.0,43651.0,0.323751]
[1644585056072,0.00026545,43657.0,43652.0,0.369551]
[1644585056370,0.00026545,43657.0,43654.0,0.323751]
[1644585056570,0.323751,43660.0,43659.0,0.33432389]
[1644585056772,0.32401645,43660.0,43659.0,0.33432389]
[1644585056972,0.323751,43660.0,43659.0,0.38012389]
[1644585057377,0.58830339,43660.0,43659.0,0.0458]
[1644585057671,0.58830339,43660.0,43659.0,0.0408]
[1644585058072,0.63830339,43660.0,43659.0,0.0408]
[1644585058473,0.373751,43660.0,43659.0,0.40386699]
[1644585058673,0.323751,43660.0,43659.0,0.40386699]
[1644585058877,0.24393861,43666.0,43659.0,0.40386699]
[1644585058878,0.98677591,43668.0,43660.0,0.323751]
[1644585059073,0.98677591,43668.0,43661.0,0.0458]
[1644585059074,0.0029373,43668.0,43661.0,0.0458]
[1644585059320,0.323751,43667.0,43661.0,0.0458]
[1644585059521,0.26589228,43667.0,43661.0,0.29712193]
[1644585059722,0.24456544,43670.0,43662.0,0.323751]
[1644585059923,0.323751,43669.0,43663.0,0.0458]
[1644585060124,0.323751,43669.0,43664.0,0.103068]
[1644585060321,0.323751,43669.0,43666.0,0.40448684]
[1644585060622,0.323751,43669.0,43667.0,0.0458]
[1644585060820,0.35055024,43668.0,43667.0,0.0458]
[1644585061019,0.52862224,43668.0,43667.0,0.0458]
[1644585061722,0.56862224,43668.0,43667.0,0.0458]
[1644585064468,0.56862224,43668.0,43652.0,0.27947802]
[1644585064668,0.06870266,43657.0,43651.0,0.0465347]
[1644585064868,0.057291,43660.0,43651.0,0.0007347]
[1644585065271,0.057291,43660.0,43654.0,0.32000598]
[1644585065469,0.27846229,43658.0,43654.0,0.32000598]
[1644585065671,0.33575129,43658.0,43654.0,0.32000598]
[1644585066370,0.057289,43657.0,43654.0,0.32000598]
[1644585066571,0.323751,43656.0,43654.0,0.32000598]
[1644585066829,0.323751,43655.0,43654.0,0.32000598]
[1644585067128,0.057289,43657.0,43651.0,0.00073457]
[1644585067527,0.323751,43656.0,43651.0,0.00073457]
[1644585067730,0.323751,43655.0,43650.0,0.39379299]
[1644585067928,0.323751,43655.0,43651.0,0.00073455]
[1644585067929,0.057293,43655.0,43651.0,0.00073455]
[1644585068127,0.35762629,43658.0,43651.0,0.00073455]
[1644585068328,0.41272552,43657.0,43651.0,0.00073455]
[1644585069031,0.114585,43660.0,43651.0,0.26737704]
[1644585069032,0.057288,43660.0,43651.0,0.26737704]
[1644585069330,0.27193377,43668.0,43651.0,0.26811159]
[1644585069331,0.32448533,43664.0,43651.0,0.26811159]
[1644585069531,0.05073433,43664.0,43652.0,0.0458]
[1644585069928,0.00073433,43664.0,43652.0,0.0458]
[1644585070131,0.323751,43661.0,43659.0,0.31903463]
[1644585070568,0.178072,43660.0,43659.0,0.31903463]
[1644585070766,0.05728,43662.0,43659.0,0.31903463]
[1644585071266,0.323751,43660.0,43659.0,0.31903463]
[1644585071468,0.05728,43662.0,43659.0,0.31903463]
[1644585071667,0.323751,43661.0,43659.0,0.31903463]
[1644585071866,0.05,43661.0,43659.0,0.31903463]
[1644585072266,0.323751,43660.0,43659.0,0.31903463]
[1644585073373,0.0580164,43664.0,43659.0,0.31903463]
[1644585073374,0.0007344,43664.0,43659.0,0.97881049]
[1644585073669,0.5864102,43674.0,43660.0,0.381022]
[1644585073670,0.3911,43674.0,43660.0,0.381022]
[1644585073868,0.3911,43674.0,43661.0,0.0458]
[1644585074068,0.001,43674.0,43662.0,0.59646341]
[1644585074321,0.00073441,43664.0,43663.0,0.0458]
[1644585074520,0.00073441,43664.0,43663.0,1.07659734]
[1644585075119,0.00026531,43669.0,43663.0,1.07659734]
[1644585075319,0.00062683,43670.0,43663.0,0.80441096]
[1644585075526,0.00062683,43670.0,43669.0,0.33433712]
[1644585075721,0.37437783,43670.0,43669.0,0.33433712]
[1644585076022,0.37437783,43670.0,43666.0,0.0458]
[1644585076023,0.178072,43668.0,43666.0,0.0458]
[1644585076222,0.323751,43666.0,43662.0,0.0458]
[1644585076522,0.05,43668.0,43662.0,0.0458]
[1644585076722,0.32401631,43667.0,43662.0,0.0458]
[1644585076920,6.248e-05,43663.0,43662.0,0.369551]
[1644585077821,6.248e-05,43663.0,43662.0,0.32371]
[1644585078074,6.248e-05,43663.0,43659.0,0.26941087]
[1644585078075,6.248e-05,43663.0,43659.0,0.27637844]
[1644585078370,0.057278,43662.0,43660.0,0.36951]
[1644585078972,6.248e-05,43663.0,43661.0,0.26817013]
[1644585078973,0.00032779,43663.0,43661.0,0.26817013]
[1644585079174,6.248e-05,43663.0,43662.0,0.32371]
[1644585079471,6.248e-05,43663.0,43662.0,0.61077896]
[1644585080373,6.248e-05,43663.0,43662.0,0.66804596]
[1644585080977,0.00062683,43670.0,43663.0,0.95]
[1644585081177,0.00062683,43670.0,43664.0,0.37494945]
[1644585081178,0.00073504,43665.0,43664.0,0.37494945]
[1644585081375,0.002,43676.0,43667.0,0.32371]
[1644585081576,0.002,43676.0,43669.0,0.32371]
[1644585081835,0.002,43676.0,43670.0,0.0458]
[1644585082033,0.002,43676.0,43671.0,0.32371]
[1644585082231,0.002,43676.0,43672.0,0.0458]